Workbook

Sheet Fractions
B2: Level 3 Maths - Fractions Created by Mr.Lafferty@mathsrevision.com
C3: Q1. Change to a mixed number :–
D5: (a) | G5: =(2*ROUND(RAND()*(20-5)+5,0)+1) -> 37 | I5: = | X5: (b) | Z5: =(2*ROUND(RAND()*(20-5)+5,0)+1) -> 19 | AB5: = | AL5: =G5/G6 -> 6.166666667
G6: =CHOOSE(ROUND(RAND()*(4-1)+1,0),2,4,6,8) -> 6 | Z6: =CHOOSE(ROUND(RAND()*(4-1)+1,0),2,4,6,8) -> 6 | AL6: =Z5/Z6 -> 3.166666667
D9: Change to a top heavy fraction :– | AL9: =(2*ROUND(RAND()*(20-5)+5,0)+1) -> 39
AL10: =CHOOSE(ROUND(RAND()*(4-1)+1,0),2,4,6,8) -> 4
D11: (c) | G11: =AL9/AL10 -> 9.75 | I11: = | X11: (d) | Z11: =AL12/AL13 -> 5.75 | AB11: =
AL12: =(2*ROUND(RAND()*(20-5)+5,0)+1) -> 23
AL13: =CHOOSE(ROUND(RAND()*(4-1)+1,0),2,4,6,8) -> 4
C15: Q2. Calculate the following :-
AL16: =F17/F18+H17/H18 -> 1.464285714
D17: (a) | F17: =F18-ROUND(RAND()*(2-1)+1,0) -> 5 | G17: + | H17: =H18-ROUND(RAND()*(2-1)+1,0) -> 3 | I17: = | U17: (b) | W17: =W18-ROUND(RAND()*(2-1)+1,0) -> 4 | X17: - | Y17: =ROUND(RAND()*(3-1)+1,0) -> 2 | Z17: =
F18: =ROUND(RAND()*(8-2)+2,0)+1 -> 7 | H18: =ROUND(RAND()*(8-2)+2,0)+1 -> 4 | W18: =ROUND(RAND()*(5-2)+2,0)+1 -> 5 | Y18: =ROUND(RAND()*(8-6)+6,0)+1 -> 8 | AL18: =W17/W18-Y17/Y18 -> 0.55
D21: (c) | F21: =F22-ROUND(RAND()*(2-1)+1,0) -> 3 | G21: x | H21: =H22-ROUND(RAND()*(2-1)+1,0) -> 8 | I21: = | U21: (d) | W21: =W22-ROUND(RAND()*(2-1)+1,0) -> 4 | X21: ÷ | Y21: =ROUND(RAND()*(3-1)+1,0) -> 2 | Z21: = | AL21: =F21*H21/(F22*H22) -> 0.5333333333
F22: =ROUND(RAND()*(8-2)+2,0)+1 -> 5 | H22: =ROUND(RAND()*(8-2)+2,0)+1 -> 9 | W22: =ROUND(RAND()*(5-2)+2,0)+1 -> 5 | Y22: =ROUND(RAND()*(8-6)+6,0)+1 -> 9 | AL22: =(W21*Y22)/(W22*Y21) -> 3.6
C25: Q3. Calculate the following :-
AL27: =(F29*E28+F28)/F29+((I29*H28+I28)/I29) -> 7.634920635
C28: (a) | E28: =ROUND(RAND()*(4-1)+1,0) -> 4 | F28: =F29-ROUND(RAND()*(2-1)+1,0) -> 6 | G28: + | H28: =ROUND(RAND()*(4-1)+1,0) -> 2 | I28: =I29-ROUND(RAND()*(2-1)+1,0) -> 7 | J28: = | S28: (b) | U28: =ROUND(RAND()*(9-5)+5,0) -> 6 | V28: =V29-ROUND(RAND()*(2-1)+1,0) -> 2 | W28: - | X28: =U28-ROUND(RAND()*(4-1)+1,0) -> 3 | Y28: =ROUND(RAND()*(3-1)+1,0) -> 1 | Z28: =
F29: =ROUND(RAND()*(8-2)+2,0)+1 -> 7 | I29: =ROUND(RAND()*(8-2)+2,0)+1 -> 9 | V29: =ROUND(RAND()*(5-2)+2,0)+1 -> 3 | Y29: =ROUND(RAND()*(8-6)+6,0)+1 -> 8 | AL29: =(V29*U28+V28)/V29-(Y29*X28+Y28)/Y29 -> 3.541666667
C32: (c) | E32: =ROUND(RAND()*(4-1)+1,0) -> 3 | F32: =F33-ROUND(RAND()*(2-1)+1,0) -> 3 | G32: x | H32: =ROUND(RAND()*(4-1)+1,0) -> 3 | I32: =I33-ROUND(RAND()*(2-1)+1,0) -> 5 | J32: = | S32: (d) | U32: =ROUND(RAND()*(5-3)+3,0) -> 4 | V32: =V33-ROUND(RAND()*(2-1)+1,0) -> 4 | W32: ÷ | X32: =ROUND(RAND()*(3-1)+1,0) -> 2 | Y32: =ROUND(RAND()*(3-1)+1,0) -> 2 | Z32: = | AL32: =((F33*E32+F32)/F33)*((I33*H32+I32)/I33) -> 13.92857143
F33: =ROUND(RAND()*(8-2)+2,0)+1 -> 4 | I33: =ROUND(RAND()*(8-2)+2,0)+1 -> 7 | V33: =ROUND(RAND()*(5-2)+2,0)+1 -> 6 | Y33: =ROUND(RAND()*(8-6)+6,0)+1 -> 8 | AL33: =((V33*U32+V32)/V33)/((Y33*X32+Y32)/Y33) -> 2.074074074
C36: Q4. Calculate the area of the rectangle. | U36: =ROUND(RAND()*(7-4)+4,0) -> 6 | V36: =V37-ROUND(RAND()*(2-1)+1,0) -> 2 | W36: cm
V37: =ROUND(RAND()*(5-2)+2,0)+1 -> 4
Q38: Area ?
L39: =U36-ROUND(RAND()*(3-1)+1,0) -> 5 | N39: =ROUND(RAND()*(3-1)+1,0) -> 1 | O39: cm
N40: =ROUND(RAND()*(8-6)+6,0)+1 -> 9
D42: Area = | K42: cm2 | AL42: =((V37*U36+V36)/V37)*((N40*L39+N39)/N40) -> 33.22222222
W45: xcm
C46: Q5. Find the breadth xcm of the rectangle.
V48: Area | AL48: =ROUND(RAND()*(3-2)+2,0) -> 3 | AM48: =AM49-ROUND(RAND()*(2-1)+1,0) -> 3
R49: =AL48 -> 3 | S49: =AM48 -> 3 | T49: cm | V49: =AL53 -> 7.2 | AM49: =ROUND(RAND()*(5-2)+2,0)+1 -> 5
S50: =AM49 -> 5 | AL50: =AL48-ROUND(RAND()*(1-1)+1,0) -> 2 | AM50: =ROUND(RAND()*(3-1)+1,0) -> 2
AM51: =ROUND(RAND()*(8-6)+6,0)+1 -> 8
D52: Breadth = | L52: cm
AL53: =((AM49*AL48+AM48)/AM49)*((AM51*AL50+AM50)/9) -> 7.2 | AM53: cm2
AL54: =(AM51*AL50+AM50)/AM51 -> 2.25
